fUSD/lending_fUSD_20251128
["ID","MTS","AMOUNT","RATE_DAILY","PERIOD"]
[395028261,1764349855525,-151.0,0.00034247,31]
[395028263,1764349855534,-151.0,0.00034247,31]
[395028265,1764349855543,-193.196688,0.00034247,31]
[395028267,1764349855552,-151.0,0.00034247,31]
[395028269,1764349855561,-151.0,0.00034247,31]
[395028271,1764349855570,-151.0,0.00034247,31]
[395028273,1764349855580,-151.0,0.00034247,31]
[395028275,1764349855589,-185.640478,0.00034247,31]
[395028277,1764349855599,-154.393341,0.00034247,31]
[395028279,1764349855607,-154.393341,0.00034247,31]
[395028281,1764349855616,-154.393341,0.00034247,31]
[395028284,1764349855634,-154.393341,0.00034247,31]
[395028286,1764349855645,-154.393341,0.00034247,31]
[395028288,1764349855654,-154.393341,0.00034247,31]
[395028290,1764349855664,-154.393341,0.00034247,31]
[395028292,1764349855678,-154.393341,0.00034247,31]
[395028294,1764349855689,-154.393341,0.00034247,31]
[395028295,1764349855700,-154.393341,0.00034247,31]
[395028298,1764349855712,-154.393341,0.00034247,31]
[395028300,1764349855730,-154.393341,0.00034247,31]
[395028302,1764349855744,-154.393341,0.00034247,31]
[395028304,1764349855754,-154.393341,0.00034247,31]
[395028306,1764349855763,-154.393341,0.00034247,31]
[395028308,1764349855774,-154.393341,0.00034247,31]
[395028310,1764349855783,-154.393341,0.00034247,31]
[395028312,1764349855792,-151.0,0.00034247,31]
[395028314,1764349855802,-151.0,0.00034247,31]
[395028316,1764349855811,-154.393341,0.00034247,31]
[395028318,1764349855821,-481.712342,0.00034247,31]
[395028320,1764349855831,-151.0,0.00034247,31]
[395028322,1764349855840,-154.393341,0.00034247,31]
[395028324,1764349855850,-151.0,0.00034247,31]
[395028326,1764349855859,-154.393347,0.00034247,31]
[395028328,1764349855868,-481.712342,0.00034247,31]
[395028330,1764349855878,-481.712342,0.00034247,31]
[395028332,1764349855887,-481.712342,0.00034247,31]
[395028334,1764349855897,-481.712342,0.00034247,31]
[395028336,1764349855907,-481.712342,0.00034247,31]
[395028337,1764349855915,-481.712342,0.00034247,31]
[395028338,1764349855925,-481.712342,0.00034247,31]
[395028339,1764349855934,-481.712342,0.00034247,31]
[395028340,1764349855943,-481.712342,0.00034247,31]
[395028341,1764349855952,-481.712342,0.00034247,31]
[395028342,1764349855962,-481.712342,0.00034247,31]
[395028343,1764349855971,-481.712342,0.00034247,31]
[395028344,1764349855980,-516.907107,0.00034247,31]
[395028346,1764349855990,-481.712342,0.00034247,31]
[395028348,1764349855999,-516.907107,0.00034247,31]
[395028350,1764349856008,-481.712342,0.00034247,31]
[395028352,1764349856018,-516.907107,0.00034247,31]
[395028354,1764349856028,-481.712342,0.00034247,31]
[395028356,1764349856037,-496.251868,0.00034247,31]
[395028358,1764349856047,-516.907107,0.00034247,31]
[395028360,1764349856056,-481.712342,0.00034247,31]
[395028362,1764349856065,-496.251868,0.00034247,31]
[395028364,1764349856074,-516.907107,0.00034247,31]
[395028366,1764349856084,-151.0,0.00034247,31]
[395028368,1764349856093,-481.712342,0.00034247,31]
[395028370,1764349856103,-496.251868,0.00034247,31]
[395028372,1764349856113,-516.907107,0.00034247,31]
[395028374,1764349856122,-172.821926,0.00034247,31]
[395028376,1764349856131,-481.712342,0.00034247,31]
[395028378,1764349856140,-496.251868,0.00034247,31]
[395028380,1764349856150,-481.712337,0.00034247,31]
[395028382,1764349856160,-516.907107,0.00034247,31]
[395028384,1764349856169,-496.251868,0.00034247,31]
[395028386,1764349856178,-516.907107,0.00034247,31]
[395028388,1764349856187,-496.251868,0.00034247,31]
[395028390,1764349856197,-516.907107,0.00034247,31]
[395028392,1764349856207,-496.251868,0.00034247,31]
[395028394,1764349856217,-516.907107,0.00034247,31]
[395028396,1764349856226,-496.251868,0.00034247,31]
[395028398,1764349856235,-516.907107,0.00034247,31]
[395028400,1764349856245,-496.251868,0.00034247,31]
[395028402,1764349856255,-516.907107,0.00034247,31]
[395028404,1764349856265,-496.251868,0.00034247,31]
[395028406,1764349856274,-516.907107,0.00034247,31]
[395028408,1764349856284,-496.251868,0.00034247,31]
[395028410,1764349856296,-516.907107,0.00034247,31]
[395028412,1764349856308,-496.251868,0.00034247,31]
[395028414,1764349856318,-516.907107,0.00034247,31]
[395028416,1764349856329,-496.251868,0.00034247,31]
[395028418,1764349856338,-516.907107,0.00034247,31]
[395028420,1764349856347,-496.251868,0.00034247,31]
[395028422,1764349856357,-496.251868,0.00034247,31]
[395028424,1764349856366,-516.907107,0.00034247,31]
[395028426,1764349856375,-447.31509,0.00034247,31]
[395028428,1764349856384,-292.81614567,0.00034247,31]
[395028436,1764349856455,-203.43572233,0.00034247,31]
[395028438,1764349856465,-516.907107,0.00034247,31]
[395028441,1764349856475,-447.31509,0.00034247,31]
[395028443,1764349856484,-516.907107,0.00034247,31]
[395028445,1764349856494,-496.251868,0.00034247,31]
[395028447,1764349856503,-293.96330381,0.00034247,31]
[395028649,1764349858378,-153.35178619,0.00034247,31]
[395028651,1764349858388,-151.0,0.00034247,31]
[395028653,1764349858398,-516.90711091,0.00034247,31]
[395028655,1764349858407,-496.251868,0.00034247,31]
[395028657,1764349858417,-447.31509,0.00034247,31]
[395028660,1764349858427,-151.0,0.00034247,31]
[395028662,1764349858436,-237.505061,0.00034247,31]
[395028664,1764349858447,-46.90818971,0.00034247,31]
[395028696,1764349858748,-423.75110551,0.00034247,31]
[395028733,1764349859173,-25.59257278,0.00034247,31]
[395028734,1764349859194,-447.31509,0.00034247,31]
[395028735,1764349859204,-151.0,0.00034247,31]
[395028736,1764349859218,-447.31509,0.00034247,31]
[395028737,1764349859227,-237.505061,0.00034247,31]
[395028738,1764349859237,-151.0,0.00034247,31]
[395028739,1764349859247,-447.31509,0.00034247,31]
[395028740,1764349859256,-237.505061,0.00034247,31]
[395028741,1764349859265,-151.0,0.00034247,31]
[395028742,1764349859275,-447.31509,0.00034247,31]
[395028743,1764349859284,-151.0,0.00034247,31]
[395028744,1764349859294,-237.505061,0.00034247,31]
[395028745,1764349859304,-447.31509,0.00034247,31]
[395028746,1764349859313,-151.0,0.00034247,31]
[395028747,1764349859323,-237.505061,0.00034247,31]
[395028748,1764349859334,-447.31509,0.00034247,31]
[395028749,1764349859343,-151.0,0.00034247,31]
[395028750,1764349859353,-237.505061,0.00034247,31]
[395028751,1764349859363,-447.31509,0.00034247,31]
[395028752,1764349859373,-151.0,0.00034247,31]
[395028753,1764349859383,-237.505061,0.00034247,31]
[395028754,1764349859392,-447.31509,0.00034247,31]
[395028755,1764349859401,-45.85262825,0.00034247,31]
[395028756,1764349859416,-191.65243275,0.00034247,31]
[395028757,1764349859425,-151.0,0.00034247,31]
[395028758,1764349859435,-237.505061,0.00034247,31]
[395028759,1764349859444,-447.31509,0.00034247,31]
[395028760,1764349859453,-151.0,0.00034247,31]
[395028761,1764349859463,-237.505061,0.00034247,31]
[395028762,1764349859473,-447.31509,0.00034247,31]
[395028763,1764349859483,-151.0,0.00034247,31]
[395028764,1764349859493,-237.505061,0.00034247,31]
[395028765,1764349859502,-447.31509,0.00034247,31]
[395028766,1764349859513,-151.0,0.00034247,31]
[395028767,1764349859522,-237.505061,0.00034247,31]
[395028768,1764349859532,-447.31509,0.00034247,31]
[395028769,1764349859541,-237.505061,0.00034247,31]
[395028770,1764349859551,-151.0,0.00034247,31]
[395028771,1764349859560,-447.31509,0.00034247,31]
[395028772,1764349859575,-447.31509,0.00034247,31]
[395028773,1764349859587,-151.0,0.00034247,31]
[395028774,1764349859597,-447.31509,0.00034247,31]
[395028775,1764349859607,-154.84572,0.00034247,31]
[395028776,1764349859618,-237.505061,0.00034247,31]
[395028777,1764349859628,-447.315095,0.00034247,31]
[395028778,1764349859639,-237.505061,0.00034247,31]
[395028779,1764349859649,-237.505061,0.00034247,31]
[395028780,1764349859659,-151.0,0.00034247,31]
[395028781,1764349859670,-237.505061,0.00034247,31]
[395028782,1764349859680,-151.0,0.00034247,31]
[395028783,1764349859690,-237.505061,0.00034247,31]
[395028784,1764349859700,-151.0,0.00034247,31]
[395028785,1764349859711,-237.505061,0.00034247,31]
[395028786,1764349859724,-151.0,0.00034247,31]
[395028787,1764349859734,-237.505068,0.00034247,31]
[395028788,1764349859744,-151.0,0.00034247,31]
[395028789,1764349859755,-151.0,0.00034247,31]
[395028790,1764349859765,-151.0,0.00034247,31]
[395028791,1764349859775,-151.0,0.00034247,31]
[395028792,1764349859785,-151.0,0.00034247,31]
[395028793,1764349859797,-249.127374,0.00034247,31]
[395028794,1764349859806,-496.251873,0.00034247,31]
[395028795,1764349859816,-151.0,0.00034247,31]
[395028796,1764349859826,-151.0,0.00034247,31]
[395028797,1764349859838,-151.0,0.00034247,31]
[395028798,1764349859847,-151.0,0.00034247,31]
[395028799,1764349859857,-151.0,0.00034247,31]
[395028800,1764349859866,-151.0,0.00034247,31]
[395028801,1764349859876,-151.0,0.00034247,31]
[395028802,1764349859885,-151.0,0.00034247,31]
[395028803,1764349859896,-151.0,0.00034247,31]
[395028804,1764349859906,-151.0,0.00034247,31]
[395028805,1764349859916,-151.0,0.00034247,31]
[395028806,1764349859926,-151.0,0.00034247,31]
[395028807,1764349859935,-151.0,0.00034247,31]
[395028809,1764349859949,-151.0,0.00034247,31]
[395028811,1764349859959,-151.0,0.00034247,31]
[395028813,1764349859968,-151.0,0.00034247,31]
[395028815,1764349859978,-151.0,0.00034247,31]
[395028817,1764349859988,-151.0,0.00034247,31]
[395028819,1764349859997,-151.0,0.00034247,31]
[395028821,1764349860007,-151.0,0.00034247,31]
[395028824,1764349860017,-151.0,0.00034247,31]
[395028826,1764349860027,-220.306394,0.00034247,31]
[395028828,1764349860037,-151.0,0.00034247,31]
[395028830,1764349860048,-151.0,0.00034247,31]
[395028832,1764349860058,-158.879659,0.00034247,31]
[395028834,1764349860068,-151.0,0.00034247,31]
[395028836,1764349860078,-151.0,0.00034247,31]
[395028838,1764349860089,-151.0,0.00034247,31]
[395028840,1764349860099,-151.0,0.00034247,31]
[395028841,1764349860109,-151.0,0.00034247,31]
[395028843,1764349860119,-58.37176464,0.00034247,31]
[395028847,1764349860152,-92.62823536,0.00034247,31]
[395028848,1764349860162,-151.0,0.00034247,31]
[395028850,1764349860172,-401.88757,0.00034247,31]
[395028852,1764349860182,-151.0,0.00034247,31]
[395028854,1764349860192,-401.88757,0.00034247,31]
[395028856,1764349860203,-186.303041,0.00034247,31]
[395028858,1764349860213,-401.88757,0.00034247,31]
[395028860,1764349860224,-113.51331329,0.00034247,31]
[395028910,1764349899255,600.07066372,0.00013699,2]
[395028911,1764349899278,26.16933628,0.00013699,2]
[395028912,1764350257112,-1200.0,0.00016732,2]
[395028913,1764350408725,150.0,0.00025,120]
[395028914,1764350419813,150.0,0.00022,30]
[395028971,1764351032345,-576.20420375,0.000158,2]
[395028974,1764351032365,-423.79579625,0.000158,2]
[395028975,1764351032379,-195.0,0.000159,2]
[395028976,1764351032394,-195.0,0.00016,2]
[395028977,1764351032411,-195.0,0.00016079,2]
[395028978,1764351032426,-1200.0,0.00016199,2]
[395028979,1764351032440,-7280.00358827,0.000162,5]
[395028980,1764351032456,-1200.0,0.00016298,2]
[395028981,1764351032471,-300.0,0.00016298,2]
[395028982,1764351032485,-300.0,0.00016298,2]
[395028983,1764351032500,-500.0,0.00016299,2]
[395028984,1764351032515,-428.7958388,0.000163,2]
[395028985,1764351032530,-2189.44,0.00016438,2]
[395028986,1764351032544,-1190.2886,0.00016633,2]
[395028987,1764351032560,-867.04157113,0.00016661,2]
[395028988,1764351032575,-1828.45982345,0.00016661,2]
[395028989,1764351032589,-319.46344342,0.00016664,2]
[395028990,1764351032603,-1828.45982341,0.00016695,2]
[395028991,1764351032618,-300.0,0.00016723,2]
[395028993,1764351032632,-267.46074303,0.00016723,2]
[395028995,1764351032646,-1671.92750198,0.0001673,2]
[395028998,1764351032668,-156.53232143,0.0001673,2]
[395029000,1764351032683,-313.79520348,0.00016732,2]
[395029003,1764351032697,-65.03447509,0.00016732,2]
[395029008,1764351032740,-409.96552491,0.00016732,2]
[395029011,1764351032755,-498.34608365,0.00016764,2]
[395029014,1764351032775,-412.77728069,0.00016764,2]
[395029016,1764351032792,-917.33645907,0.00016764,2]
[395029017,1764351032807,-214.33177619,0.00016773,2]
[395029018,1764351032824,-285.66822381,0.00016773,2]
[395029019,1764351032838,-500.0,0.00016773,2]
[395029020,1764351032852,-160.15975092,0.00016773,2]
[395029021,1764351032866,-503.24440307,0.00016773,2]
[395029022,1764351032880,-1828.45982341,0.00016799,2]
[395029023,1764351032895,-1828.45982341,0.00016833,2]
[395029024,1764351032911,-1828.45982341,0.00016868,2]
[395029025,1764351032926,-527.7936426,0.000169,2]
[395029026,1764351032940,-199.308025,0.000169,2]
[395029027,1764351032955,-313.66280125,0.000169,2]
[395029028,1764351032972,-1828.45982341,0.00016902,2]
[395029029,1764351032986,-7499.40624881,0.00016912,2]
[395029030,1764351033001,-1828.45982341,0.00016937,2]
[395029031,1764351033017,-51.68862678,0.00016971,2]
[395029032,1764351033165,-1776.77119663,0.00016971,2]
[395029033,1764351033181,-223.79453252,0.00016973,2]
[395029034,1764351033201,-276.20546748,0.00016973,2]
[395029035,1764351033215,-500.0,0.00016973,2]
[395029036,1764351033231,-501.84870213,0.00016973,2]
[395029037,1764351033247,-503.08797881,0.00016973,2]
[395029038,1764351033264,-500.0,0.00016973,2]
[395029039,1764351033280,-500.0,0.00016973,2]
[395029040,1764351033296,-186.88026511,0.00016973,2]
[395029041,1764351033312,-526.11628157,0.00016973,2]
[395029042,1764351033334,-215.63945955,0.00016973,2]
[395029043,1764351033356,-500.0,0.00016973,2]
[395029044,1764351033375,-500.0,0.00016973,2]
[395029045,1764351033395,-172.25490603,0.00016973,2]
[395029046,1764351033418,-500.0,0.00016973,2]
[395029047,1764351033436,-500.0,0.00016973,2]
[395029048,1764351033455,-200.0,0.0001699,2]
[395029049,1764351033474,-212.00770439,0.0001699,2]
[395029050,1764351033494,-341.63603368,0.0001699,2]
[395029051,1764351033512,-72.79396631,0.0001699,2]
[395029065,1764351038799,-500.0,0.00016973,2]
[395029067,1764351038810,-355.5,0.00016973,2]
[395029072,1764351038852,-146.72800142,0.00016973,2]
[395029074,1764351038863,-500.0,0.00016973,2]
[395029076,1764351038873,-88.0052915,0.0001699,2]
[395029078,1764351038884,-500.0,0.0001699,2]
[395029080,1764351038894,-500.0,0.0001699,2]
[395029082,1764351038904,-500.0,0.0001699,2]
[395029084,1764351038919,-500.0,0.0001699,2]
[395029086,1764351038930,-500.0,0.0001699,2]
[395029088,1764351038940,-500.0,0.0001699,2]
[395029090,1764351038950,-264.70467406,0.0001699,2]
[395029092,1764351038963,-235.29532594,0.0001699,2]
[395029094,1764351038974,-51.68476416,0.0001699,2]
[395029096,1764351038986,-354.24049117,0.0001699,2]
[395029098,1764351038999,-94.07474467,0.0001699,2]
[395029101,1764351039010,-500.0,0.0001699,2]
[395029103,1764351039020,-500.0,0.0001699,2]
[395029105,1764351039030,-500.0,0.0001699,2]
[395029107,1764351039039,-500.0,0.0001699,2]
[395029108,1764351039049,-196.86525533,0.0001699,2]
[395029113,1764351039085,-303.13474467,0.0001699,2]
[395029115,1764351039096,-250.0,0.0001699,2]
[395029117,1764351039106,-500.0,0.0001699,2]
[395029119,1764351039117,-500.0,0.0001699,2]
[395029121,1764351039127,-250.0,0.0001699,2]
[395029123,1764351039138,-500.0,0.0001699,2]
[395029125,1764351039149,-500.0,0.0001699,2]
[395029127,1764351039161,-250.0,0.0001699,2]
[395029129,1764351039172,-500.0,0.0001699,2]
[395029131,1764351039182,-250.0,0.0001699,2]
[395029133,1764351039192,-500.0,0.0001699,2]
[395029135,1764351039203,-250.0,0.0001699,2]
[395029137,1764351039213,-500.0,0.0001699,2]
[395029139,1764351039224,-250.0,0.0001699,2]
[395029141,1764351039234,-140.09525533,0.0001699,2]
[395029145,1764351039265,-109.90474467,0.0001699,2]
[395029147,1764351039275,-500.0,0.0001699,2]
[395029149,1764351039285,-250.0,0.0001699,2]
[395029151,1764351039295,-250.0,0.0001699,2]
[395029153,1764351039305,-500.0,0.0001699,2]
[395029155,1764351039315,-250.0,0.0001699,2]
[395029157,1764351039326,-151.0,0.0001699,2]
[395029159,1764351039335,-500.0,0.0001699,2]
[395029161,1764351039345,-250.0,0.0001699,2]
[395029163,1764351039355,-151.0,0.0001699,2]
[395029165,1764351039366,-437.69525533,0.0001699,2]
[395029168,1764351039378,-62.30474467,0.0001699,2]
[395029170,1764351039388,-250.0,0.0001699,2]
[395029172,1764351039398,-151.0,0.0001699,2]
[395029174,1764351039408,-500.0,0.0001699,2]
[395029176,1764351039419,-407.41132333,0.0001699,2]
[395029178,1764351039431,-92.58867667,0.0001699,2]
[395029180,1764351039440,-151.0,0.0001699,2]
[395029182,1764351039450,-500.0,0.0001699,2]
[395029184,1764351039460,-500.0,0.0001699,2]
[395029186,1764351039470,-253.97841715,0.0001699,2]
[395029188,1764351039480,-500.0,0.0001699,2]
[395029190,1764351039490,-500.0,0.0001699,2]
[395029192,1764351039499,-500.0,0.0001699,2]
[395029194,1764351039510,-500.0,0.0001699,2]
[395029196,1764351039521,-500.0,0.0001699,2]
[395029198,1764351039530,-500.0,0.0001699,2]
[395029201,1764351039541,-500.0,0.0001699,2]
[395029203,1764351039550,-500.0,0.0001699,2]
[395029205,1764351039559,-151.0,0.0001699,2]
[395029206,1764351039568,-500.0,0.0001699,2]
[395029208,1764351039578,-500.0,0.0001699,2]
[395029211,1764351039587,-151.0,0.0001699,2]
[395029212,1764351039597,-500.0,0.0001699,2]
[395029214,1764351039606,-500.0,0.0001699,2]
[395029217,1764351039616,-500.0,0.0001699,2]
[395029219,1764351039625,-500.0,0.0001699,2]
[395029221,1764351039635,-151.0,0.0001699,2]
[395029223,1764351039644,-500.0,0.0001699,2]
[395029225,1764351039653,-14.81383745,0.0001699,2]
[395029227,1764351039666,-485.18616255,0.0001699,2]
[395029229,1764351039676,-151.0,0.0001699,2]
[395029231,1764351039685,-151.0,0.0001699,2]
[395029233,1764351039695,-500.0,0.0001699,2]
[395029235,1764351039705,-500.0,0.0001699,2]
[395029237,1764351039715,-151.0,0.0001699,2]
[395029239,1764351039724,-151.0,0.0001699,2]
[395029241,1764351039733,-500.0,0.0001699,2]
[395029243,1764351039744,-500.0,0.0001699,2]
[395029245,1764351039753,-151.0,0.0001699,2]
[395029247,1764351039763,-151.0,0.0001699,2]
[395029249,1764351039772,-500.0,0.0001699,2]
[395029251,1764351039782,-151.0,0.0001699,2]
[395029253,1764351039791,-500.0,0.0001699,2]
[395029255,1764351039801,-500.0,0.0001699,2]
[395029257,1764351039811,-151.0,0.0001699,2]
[395029259,1764351039820,-500.0,0.0001699,2]
[395029261,1764351039830,-151.0,0.0001699,2]
[395029263,1764351039839,-500.0,0.0001699,2]
[395029265,1764351039849,-151.0,0.0001699,2]
[395029267,1764351039859,-500.0,0.0001699,2]
[395029269,1764351039871,-500.0,0.0001699,2]
[395029271,1764351039881,-151.0,0.0001699,2]
[395029274,1764351039890,-32.87824473,0.0001699,2]
[395029387,1764351040895,-413.99999979,0.0001699,2]
[395029393,1764351040948,-53.12175548,0.0001699,2]
[395029395,1764351040957,-151.0,0.0001699,2]
[395029397,1764351040966,-151.0,0.0001699,2]
[395029399,1764351040976,-500.0,0.0001699,2]
[395029401,1764351040985,-151.0,0.0001699,2]
[395029403,1764351040994,-151.0,0.0001699,2]
[395029406,1764351041003,-500.0,0.0001699,2]
[395029409,1764351041012,-151.0,0.0001699,2]
[395029411,1764351041021,-500.0,0.0001699,2]
[395029413,1764351041030,-151.0,0.0001699,2]
[395029415,1764351041039,-500.0,0.0001699,2]
[395029417,1764351041048,-500.0,0.0001699,2]
[395029419,1764351041059,-500.0,0.0001699,2]
[395029421,1764351041070,-542.83477767,0.0001699,2]
[395029423,1764351041079,-151.0,0.0001699,2]
[395029424,1764351041087,-500.0,0.00016999,2]
[395029425,1764351041098,-500.0,0.00016999,2]
[395029426,1764351041107,-300.0,0.00016999,2]
[395029427,1764351041115,-38865.77743528,0.00017,2]
[395029428,1764351041126,-321772.37199874,0.00017,2]
[395029429,1764351041140,-302700.97128913,0.00017,2]
[395029430,1764351041174,-910844.51436143,0.00017,2]
[395029916,1764351046633,-391.68843826,0.000169,2]
[395029918,1764351046643,-500.0,0.00016973,2]
[395029920,1764351046652,-500.0,0.00016973,2]
[395029922,1764351046662,-130.94104314,0.00017,2]
[395030420,1764351351072,156.09,8.091e-05,2]
[395030421,1764351351268,156.09,8.517e-05,2]
[395030422,1764351351485,156.09,8.942e-05,2]
[395030423,1764351351702,105.63132744,9.368e-05,2]
[395030424,1764351351730,50.45867256,9.368e-05,2]
[395030425,1764351351911,156.09,9.794e-05,2]
[395030426,1764351352130,156.09,0.0001022,2]
[395030427,1764351352353,156.09,0.00010646,2]
[395030428,1764351352545,81.34199116,0.00011072,2]
[395030429,1764351352574,74.74800884,0.00011072,2]
[395030430,1764351352745,156.09,0.00011497,2]
[395030431,1764351352947,156.09,0.00011923,2]
[395030432,1764351353132,156.09,0.00012349,2]
[395030433,1764351353353,57.05265488,0.00012775,2]
[395030434,1764351353382,99.03734512,0.00012775,2]
[395030435,1764351354579,156.09,0.00013201,2]
[395030436,1764351354632,156.09,0.00013627,2]
[395030437,1764351354723,156.09,0.00014052,2]
[395030438,1764351354795,32.7633186,0.00014478,2]
[395030439,1764351354818,123.3266814,0.00014478,2]
[395030440,1764351354888,156.09,0.00014904,2]
[395030441,1764351373649,161.86,0.00022,30]
[395030461,1764352145503,164.93,0.00019178,30]
[395030504,1764352231423,-300.0,0.00015287,2]
[395030505,1764352231433,-1200.0,0.00015287,2]
[395030506,1764352231443,-195.0,0.00015287,2]
[395030507,1764352231453,-250.0,0.00015287,2]
[395030508,1764352231463,-150.0,0.00015288,2]
[395030509,1764352231473,-150.0,0.00015288,2]
[395030511,1764352231483,-150.0,0.00015288,2]
[395030513,1764352231492,-150.0,0.00015288,2]
[395030515,1764352231502,-150.0,0.00015288,2]
[395030517,1764352231512,-150.0,0.00015288,2]
[395030519,1764352231522,-150.37128175,0.00015288,2]
[395030521,1764352231535,-150.0,0.00015288,2]
[395030523,1764352231545,-150.0,0.00015288,2]
[395030526,1764352231554,-60.34247335,0.00015288,2]
[395030530,1764352231590,-89.65752665,0.00015288,2]
[395030532,1764352231600,-156.09,0.0001533,2]
[395030534,1764352231610,-1383.12946909,0.00015698,2]
[395030537,1764352231621,-638.39053091,0.00015698,2]
[395030539,1764352231631,-200.0,0.00015725,2]
[395030541,1764352231641,-250.0,0.00015744,2]
[395030543,1764352231651,-156.09,0.00015756,2]
[395030545,1764352231661,-78.57945291,0.00016137,2]
[395030547,1764352231682,-71.42054709,0.00016137,2]
[395030549,1764352231691,-156.09,0.00016182,2]
[395030550,1764352231700,-92.63719175,0.00016234,2]
[395030551,1764352231719,-226.82625167,0.00016234,2]
[395030552,1764352231730,-267.46074303,0.00016525,2]
[395030553,1764352231739,-300.0,0.00016525,2]
[395030554,1764352231749,-3656.3645815,0.00016533,2]
[395030555,1764352231761,-6215.3688185,0.00016533,2]
[395030556,1764352231771,-319.46344342,0.00016539,2]
[395030557,1764352231780,-6701.3272159,0.00016564,2]
[395030567,1764352237436,-1753.18932436,0.00016564,2]
[395030568,1764352237448,-1262.78594587,0.00016564,2]
[395030569,1764352237460,-886.49,0.00016564,2]
[395030570,1764352237513,-847.58142546,0.00016564,2]
[395030571,1764352237523,-1471.66857454,0.00016601,2]
[395030572,1764352237535,-2639.869435,0.00016601,2]
[395030573,1764352237563,-4264.93653509,0.00016601,2]
[395030574,1764352237653,-2751.48466724,0.00016601,2]
[395030575,1764352237666,-323.41469972,0.00016601,2]
[395030577,1764352237676,-200.0,0.00016623,2]
[395030579,1764352237687,-334.88776931,0.00016623,2]
[395030581,1764352237699,-165.11223069,0.00016623,2]
[395030583,1764352237710,-500.0,0.00016623,2]
[395030585,1764352237720,-500.0,0.00016623,2]
[395030587,1764352237732,-500.0,0.00016623,2]
[395030590,1764352237742,-154.84001827,0.00016623,2]
[395030770,1764352239606,-345.15998173,0.00016623,2]
[395030772,1764352239615,-500.0,0.00016623,2]
[395030774,1764352239626,-500.0,0.00016623,2]
[395030777,1764352239645,-500.0,0.00016623,2]
[395030779,1764352239656,-500.0,0.00016623,2]
[395030781,1764352239666,-500.0,0.00016623,2]
[395030783,1764352239676,-500.0,0.00016623,2]
[395030785,1764352239686,-500.0,0.00016623,2]
[395030787,1764352239696,-178.86001807,0.00016623,2]
[395030800,1764352239808,-321.13998193,0.00016623,2]
[395030802,1764352239817,-500.0,0.00016623,2]
[395030804,1764352239827,-500.0,0.00016623,2]
[395030806,1764352239837,-151.0,0.00016623,2]
[395030808,1764352239847,-341.50501807,0.00016623,2]
[395030814,1764352239892,-158.49498193,0.00016623,2]
[395030816,1764352239903,-500.0,0.00016623,2]
[395030818,1764352239913,-500.0,0.00016623,2]
[395030820,1764352239923,-151.0,0.00016623,2]
[395030823,1764352239933,-500.0,0.00016623,2]
[395030825,1764352239943,-151.0,0.00016623,2]
[395030827,1764352239952,-500.0,0.00016623,2]
[395030829,1764352239962,-500.0,0.00016623,2]
[395030831,1764352239971,-151.0,0.00016623,2]
[395030833,1764352239982,-500.0,0.00016623,2]
[395030835,1764352239992,-201.93286098,0.00016623,2]
[395030837,1764352240002,-500.0,0.00016623,2]
[395030838,1764352240011,-151.0,0.00016623,2]
[395030841,1764352240021,-500.0,0.00016623,2]
[395030843,1764352240031,-151.0,0.00016623,2]
[395030845,1764352240041,-151.0,0.00016623,2]